bitfinex-derivatives/quotes_SOLF0:USTF0_20250105
["timestamp","ask_amount","ask_price","bid_price","bid_amount"]
[1736065183116,1.16312034,215.03,214.98,2.3261]
[1736065183315,1.16312034,215.02,214.98,2.3261]
[1736065183518,1.3747,215.1,214.99,11.40620601]
[1736065183719,1.16294565,215.09,214.99,11.40620601]
[1736065183919,1.16294565,215.08,214.99,11.40620601]
[1736065184114,1.16294565,215.07,215.0,2.8886]
[1736065184317,1.16294565,215.06,215.01,2.78]
[1736065184517,1.16294565,215.05,215.01,2.78]
[1736065184715,2.3247,215.11,215.02,11.40620601]
[1736065184914,1.16279227,215.1,215.02,11.40620601]
[1736065185118,1.16279227,215.09,215.02,11.40620601]
[1736065185320,1.16279227,215.08,215.02,11.40620601]
[1736065185514,2.3247,215.11,215.02,11.40620601]
[1736065185721,1.16271868,215.1,215.02,11.40620601]
[1736065185912,1.16271868,215.09,215.05,2.3252]
[1736065186221,1.16271868,215.08,215.05,2.3252]
[1736065186420,15.68760601,215.16,215.05,2.3252]
[1736065186622,1.16271573,215.15,215.05,2.3252]
[1736065186823,1.16271573,215.14,215.02,11.40620601]
[1736065187018,1.16271573,215.13,215.06,2.3252]
[1736065187320,1.16271573,215.12,215.06,2.3252]
[1736065187614,1.16271573,215.11,215.06,2.3252]
[1736065187817,12.90760601,215.16,215.05,11.40620601]
[1736065188021,1.16252587,215.15,215.09,2.3249]
[1736065188223,1.16252587,215.14,215.06,2.78]
[1736065188418,1.16252587,215.13,215.09,2.3248]
[1736065188624,3.8256,215.16,215.09,2.3248]
[1736065188924,3.4867852,215.15,215.07,2.325]
[1736065189121,1.1624852,215.14,215.07,2.325]
[1736065189419,1.1624852,215.13,215.06,2.78]
[1736065189623,1.1624852,215.12,215.06,2.78]
[1736065189917,12.90760601,215.16,215.06,2.78]
[1736065190323,2.3244,215.14,215.07,2.3251]
[1736065190522,1.16252453,215.13,215.07,2.3251]
[1736065190723,2.3244,215.14,215.07,2.3251]
[1736065191319,2.3244,215.14,215.08,2.325]
[1736065192322,2.3238,215.2,215.13,2.3245]
[1736065192527,1.16245378,215.19,215.11,11.40620601]
[1736065192723,1.16245378,215.18,215.11,14.18620601]
[1736065192927,1.16245378,215.17,215.11,14.18620601]
[1736065193122,1.16245378,215.16,215.11,14.18620601]
[1736065193423,2.3236,215.21,215.11,14.18620601]
[1736065193629,1.16224028,215.2,215.11,14.18620601]
[1736065193923,2.3239,215.18,215.11,14.18620601]
[1736065194125,1.16224028,215.17,215.11,14.18620601]
[1736065194522,1.16224028,215.16,215.11,2.78]
[1736065194727,1.16224028,215.15,215.11,2.78]
[1736065194917,14.18620601,215.22,215.11,2.78]
[1736065195121,1.16238018,215.21,215.12,2.3246]
[1736065195322,1.16238018,215.2,215.12,2.3246]
[1736065195519,1.16238018,215.19,215.12,2.3246]
[1736065195823,1.16238018,215.18,215.12,2.3246]
[1736065196025,1.16238018,215.17,215.12,2.3246]
[1736065196224,1.16238018,215.16,215.12,2.3246]
[1736065196426,1.16238018,215.15,215.12,2.3246]
[1736065196626,2.324,215.18,215.12,2.3246]
[1736065196827,1.16234144,215.17,215.12,2.3246]
[1736065197020,1.16234144,215.16,215.12,2.3246]
[1736065197224,1.16234144,215.15,215.12,2.3246]
[1736065197525,2.324,215.17,215.11,5.1047]
[1736065197829,1.16238419,215.16,215.11,5.1047]
[1736065198030,1.16238419,215.15,215.11,5.1047]
[1736065198226,1.16238419,215.14,215.11,5.1047]
[1736065198426,2.324,215.17,215.11,5.1047]
[1736065198633,2.3243,215.15,215.09,2.3248]
[1736065198928,11.40620601,215.14,215.02,11.40620601]
[1736065199127,2.3249,215.09,215.02,2.78]
[1736065199919,1.16270704,215.08,215.02,2.78]
[1736065200119,2.3248,215.11,215.04,2.3254]
[1736065200319,1.16271146,215.1,215.04,2.3254]
[1736065200620,1.16271146,215.09,215.04,2.3254]
[1736065200819,1.16271146,215.08,215.02,2.78]
[1736065201020,11.40620601,215.11,215.02,2.3256]
[1736065201428,2.3253,215.06,214.98,8.34381102]
[1736065201624,1.16289485,215.05,214.98,8.34381102]
[1736065201934,2.3254,215.05,214.98,8.34381102]
[1736065202225,1.16290846,215.04,214.98,8.34381102]
[1736065202431,11.40620601,215.08,214.98,8.34381102]
[1736065202629,2.3255,215.04,214.98,8.34381102]
[1736065203233,2.78,215.04,214.9,14.25010601]
[1736065203433,11.40620601,215.02,214.86,2.78]
[1736065203633,1.16308849,215.01,214.87,14.18620601]
[1736065203830,1.16308849,215.01,214.84,1.4279]
[1736065203831,2.3265,214.95,214.86,5.1073]
[1736065204131,1.16353168,214.94,214.86,2.3273]
[1736065204328,2.78,214.98,214.86,2.3273]
[1736065204526,1.16346998,214.97,214.86,2.3273]
[1736065204729,1.16346998,214.96,214.86,2.3273]
[1736065204929,2.78,214.98,214.85,2.78]
[1736065204930,2.3267,214.93,214.85,2.78]
[1736065205130,1.16359177,214.92,214.85,2.78]
[1736065205428,2.78,214.98,214.85,2.78]
[1736065205629,1.16351373,214.97,214.85,2.78]
[1736065205823,1.16351373,214.96,214.85,2.78]
[1736065206022,2.78,214.98,214.89,2.3271]
[1736065206023,1.16351373,214.95,214.89,2.3271]
[1736065206224,1.16351373,214.94,214.89,2.3271]
[1736065206430,2.3263,214.97,214.89,2.3271]
[1736065206732,4.3131,215.03,214.87,11.40620601]
[1736065206733,1.16349852,214.96,214.87,11.40620601]
[1736065206930,2.78,215.02,214.87,11.40620601]
[1736065207236,1.16335458,215.01,214.9,11.40620601]
[1736065207431,1.16335458,215.0,214.9,14.18620601]
[1736065207629,2.78,215.02,214.9,14.18620601]
[1736065207830,1.16318088,215.01,214.9,14.18620601]
[1736065208035,1.16318088,215.0,214.95,2.3264]
[1736065208233,2.78,215.02,214.95,2.3264]
[1736065208234,1.16318096,214.99,214.95,2.3264]
[1736065208434,1.4727,215.03,214.93,11.40620601]
[1736065208630,1.16317317,215.02,214.96,2.3263]
[1736065208834,1.16317317,215.01,214.96,2.3263]
[1736065209034,1.4727,215.03,214.93,11.40620601]
[1736065209229,1.16308775,215.02,214.96,11.40620601]
[1736065209436,1.16308775,215.01,214.96,14.18620601]
[1736065209740,79.51253989,215.05,214.96,14.18620601]
[1736065209928,1.16303549,215.04,214.96,14.18620601]
[1736065210129,79.51253989,215.05,214.96,14.18620601]
[1736065210333,1.16303188,215.04,214.96,14.18620601]
[1736065210538,1.16303188,215.03,214.98,2.3261]
[1736065210936,1.16303188,215.02,214.96,14.18620601]
[1736065211139,1.16305577,215.01,214.96,16.51250601]
[1736065211335,81.83793989,215.05,214.96,14.18620601]
[1736065211540,1.16305089,215.04,214.96,14.18620601]
[1736065211751,1.16305089,215.03,214.96,14.18620601]
[1736065211938,1.16305089,215.02,214.96,14.18620601]
[1736065212140,1.16305089,215.01,214.96,14.18620601]
[1736065212341,2.3256,215.03,214.96,2.78]
[1736065212637,1.16304719,215.02,214.96,2.78]
[1736065212839,1.16304719,215.01,214.96,2.78]
[1736065213042,1.16304719,215.0,214.96,2.78]
[1736065213445,1.1631809,214.99,214.93,13.73280601]
[1736065213637,1.4536,215.04,214.93,13.73280601]
[1736065213847,1.16317626,215.03,214.93,2.3266]
[1736065214039,3.48887626,215.02,214.93,2.3266]
[1736065214238,1.16317626,215.01,214.93,2.3266]
[1736065214440,1.16317626,215.0,214.93,2.3266]
[1736065214643,1.16317626,214.99,214.93,2.3266]
[1736065214843,1.16317626,214.98,214.93,2.3266]
[1736065215043,1.16317626,214.97,214.93,2.3266]
[1736065215245,2.3257,215.02,214.93,2.3266]
[1736065215549,1.16321311,215.01,214.93,2.3266]
[1736065215846,1.16321311,215.0,214.93,2.3266]
[1736065216044,1.16321311,214.99,214.94,2.3265]
[1736065216239,1.16321311,214.98,214.94,2.3265]
[1736065216436,2.3257,215.02,214.94,2.3265]
[1736065216641,1.16320139,215.01,214.94,2.3265]
[1736065216838,1.16320139,215.0,214.94,2.3265]
[1736065217041,1.16320139,214.99,214.94,2.3265]
[1736065217243,1.16320139,214.98,214.94,2.3265]
[1736065217444,2.3257,215.02,214.94,2.3265]
[1736065217748,1.1631911,215.01,214.94,2.3265]
[1736065217949,1.1631911,215.0,214.94,2.3265]
[1736065218150,1.1631911,214.99,214.94,2.3265]
[1736065218352,1.1631911,214.98,214.94,2.3265]
[1736065218548,2.3257,215.02,214.94,2.3265]
[1736065218743,1.16321293,215.01,214.94,2.3265]
[1736065219053,1.16321293,215.0,214.94,2.3265]
[1736065219258,1.16321293,214.99,214.94,2.3265]
[1736065219452,1.16321317,214.98,214.94,2.3265]
[1736065219648,2.3257,215.02,214.94,2.3265]
[1736065219850,1.16321403,215.01,214.94,2.3265]
[1736065220046,1.16321867,215.0,214.94,2.3265]
[1736065220246,1.16321867,214.99,214.94,2.3265]
[1736065220447,1.16321867,214.98,214.94,2.3265]
[1736065220752,2.3257,215.02,214.94,2.3265]
[1736065220958,1.16321925,215.01,214.94,2.3265]
[1736065221254,1.16321925,215.0,214.95,2.3264]
[1736065221451,1.16321925,214.99,214.95,2.3264]
[1736065221652,1.16321925,214.98,214.95,2.3264]
[1736065221853,1.4536,215.04,214.95,2.3264]
[1736065222056,1.16321971,215.03,214.95,2.3264]
[1736065222256,1.16321971,215.02,214.95,2.3264]
[1736065222454,1.16321971,215.01,214.94,11.40620601]
[1736065222661,1.16321971,215.0,214.94,14.18620601]
[1736065222847,1.4536,215.04,214.94,14.18620601]
[1736065223050,1.16306723,215.03,214.97,11.40620601]
[1736065223254,2.78,215.12,214.97,11.40620601]
[1736065223452,1.16292362,215.11,215.0,11.40620601]
[1736065223656,1.16292362,215.1,215.03,2.3255]
[1736065223957,1.16292362,215.09,215.0,14.18620601]
[1736065224152,1.16292362,215.08,215.0,14.18620601]
[1736065224359,1.16292362,215.07,215.0,14.18620601]
[1736065224651,2.3246,215.12,215.0,14.18620601]
[1736065224854,1.16273691,215.11,215.0,14.18620601]
[1736065225056,1.16273691,215.1,215.03,2.3256]
[1736065225256,1.16273691,215.09,215.03,2.3256]
[1736065225551,1.16273691,215.08,215.03,2.3256]
[1736065225759,1.16273691,215.07,215.04,2.3254]
[1736065225959,11.40620601,215.13,215.01,2.8217]
[1736065226257,2.3247,215.11,215.01,2.8217]
[1736065226458,1.16274587,215.1,215.03,2.3255]
[1736065226658,1.16274587,215.09,215.03,2.3255]
[1736065226855,1.16274587,215.08,215.03,2.3255]
[1736065227055,11.40620601,215.13,215.03,2.3255]
[1736065227056,1.16274587,215.07,215.03,2.3255]
[1736065227260,11.40620601,215.13,215.03,2.3255]
[1736065227462,2.3248,215.1,215.03,2.3255]
[1736065227661,1.16275101,215.09,215.01,2.8217]
[1736065227861,1.16275101,215.08,215.01,2.8217]
[1736065228161,1.16275101,215.07,215.04,2.3254]
[1736065228361,11.40620601,215.13,215.04,2.3254]
[1736065228761,1.16273357,215.12,215.03,11.40620601]
[1736065228954,1.16273357,215.11,215.03,11.40620601]
[1736065229154,4.2854,215.15,215.03,11.40620601]
[1736065229362,1.16255746,215.14,215.03,11.40620601]
[1736065229660,1.16255746,215.13,215.03,11.40620601]
[1736065229857,1.16255746,215.12,215.03,11.40620601]
[1736065230055,1.16255746,215.11,215.06,11.40620601]
[1736065230358,1.16255746,215.11,215.01,4.1919]
[1736065230359,1.4172,215.22,215.09,11.40620601]
[1736065230665,1.16235194,215.21,215.15,2.3242]
[1736065230863,1.16235194,215.2,215.15,2.3242]
[1736065231158,1.16235194,215.19,215.15,2.3242]
[1736065231359,1.16235194,215.18,215.15,2.3242]
[1736065231557,1.16235194,215.17,215.13,2.3244]
[1736065231863,1.16235194,215.16,215.13,2.3244]
[1736065232065,1.4172,215.22,215.11,2.3246]
[1736065232270,11.40620601,215.2,215.1,2.78]
[1736065232458,1.16226899,215.19,215.1,2.78]
[1736065232659,11.40620601,215.17,215.05,2.78]
[1736065232863,11.40620601,215.14,215.05,2.78]
[1736065233065,1.16226899,215.13,215.05,2.78]
[1736065233260,1.16226899,215.12,215.05,5.1053]
[1736065233461,1.16226899,215.11,215.05,5.1053]
[1736065233662,1.16226899,215.1,215.05,5.1053]
[1736065233864,13.73070601,215.14,215.07,2.3251]
[1736065234066,1.16262183,215.13,215.05,2.78]
[1736065234364,1.16262183,215.12,215.05,2.78]
[1736065234567,11.40620601,215.14,215.05,2.78]
[1736065234568,2.3248,215.1,215.05,2.78]
[1736065234763,1.16262183,215.11,215.05,2.78]
[1736065234764,1.16262183,215.09,215.05,2.78]
[1736065235066,1.16262183,215.08,215.01,2.8217]
[1736065235266,1.16262183,215.07,215.03,2.3256]
[1736065235463,11.40620601,215.11,215.01,2.8217]
[1736065235962,1.16275535,215.1,215.05,2.3253]
[1736065236167,1.16275535,215.09,215.05,2.3253]
[1736065236364,1.16275535,215.08,215.05,2.3253]
[1736065236661,1.4457,215.13,215.02,14.18620601]
[1736065236967,1.16271134,215.12,215.02,14.18620601]
[1736065237266,1.16271134,215.11,215.02,14.18620601]
[1736065237464,1.16271134,215.1,215.02,14.18620601]
[1736065237663,2.78,215.14,215.02,14.18620601]
[1736065237868,1.16254042,215.13,215.02,14.18620601]
[1736065238068,1.16254042,215.12,215.02,14.18620601]
[1736065238268,2.3245,215.13,215.06,2.3252]
[1736065238468,1.16253956,215.12,215.06,2.3252]
[1736065238671,1.16253956,215.11,215.06,2.3252]
[1736065238865,1.16253956,215.1,215.06,2.3252]
[1736065239070,1.16253956,215.09,215.02,14.18620601]
[1736065239270,2.3246,215.12,215.02,14.18620601]
[1736065239473,1.16257426,215.11,215.02,14.18620601]
[1736065239769,1.16257426,215.1,215.06,2.3252]
[1736065239965,1.16259635,215.09,215.06,2.3252]
[1736065240170,2.78,215.14,215.06,2.3252]
[1736065240362,1.16259359,215.13,215.06,2.3252]
[1736065240568,1.16259359,215.12,215.07,2.3251]
[1736065240869,5.1044,215.14,215.07,2.3251]
[1736065241173,1.16256787,215.13,215.07,2.3251]
[1736065241375,1.16256787,215.12,215.07,2.3251]
[1736065241569,2.3242,215.16,215.05,11.40620601]
[1736065241772,1.16244652,215.15,215.08,11.40620601]
[1736065241973,1.4337,215.19,215.08,11.40620601]
[1736065241974,1.16244652,215.14,215.08,11.40620601]
[1736065242177,1.16244652,215.13,215.1,2.3248]
[1736065242378,2.3241,215.17,215.1,2.3248]
[1736065242580,1.16238551,215.16,215.1,2.3248]
[1736065242878,1.16238551,215.15,215.1,2.3248]
[1736065243074,3.48678551,215.14,215.07,2.3251]
[1736065243271,1.16238551,215.13,215.07,2.3251]
[1736065243472,1.4337,215.19,215.05,12.88760601]
[1736065243473,1.16238551,215.12,215.05,12.88760601]
[1736065243671,1.4337,215.19,215.07,2.3251]
[1736065243672,1.16238551,215.11,215.07,2.3251]
[1736065243873,1.4337,215.19,215.07,2.3251]
[1736065244070,1.16249846,215.18,215.07,2.3251]
[1736065244278,1.16249846,215.17,215.07,2.3251]
[1736065244478,1.16249846,215.16,215.07,2.3251]
[1736065244669,1.16249846,215.15,215.07,2.3251]
[1736065244869,3.48689846,215.14,215.07,2.3251]
[1736065245069,1.16249846,215.13,215.07,2.3251]
[1736065245272,1.16249846,215.12,215.07,2.3251]
[1736065245474,1.16249846,215.11,215.05,13.73140601]
[1736065245675,1.16249846,215.1,215.05,13.73140601]
[1736065245879,2.3245,215.13,215.05,11.40620601]
[1736065246072,1.16258881,215.12,215.04,2.78]
[1736065246279,1.16258881,215.11,215.04,2.78]
[1736065246472,1.16258881,215.1,215.04,2.78]
[1736065246678,1.16258881,215.09,215.04,2.78]
[1736065246877,2.3245,215.13,215.04,2.78]
[1736065247176,1.1625974,215.12,215.02,11.40620601]
[1736065247382,1.1625974,215.11,215.02,14.14620601]
[1736065247682,1.1626964,215.1,215.02,14.14620601]
[1736065247881,11.40620601,215.14,215.03,2.3255]
[1736065247882,1.1626964,215.09,215.03,2.3255]
[1736065248079,1.1626964,215.08,215.02,14.14620601]
[1736065248275,11.40620601,215.14,215.02,14.14620601]
[1736065248482,1.16268353,215.13,215.02,14.14620601]
[1736065248783,1.16268353,215.12,215.02,14.14620601]
[1736065248983,1.16268353,215.11,215.02,14.14620601]
[1736065249184,11.40620601,215.14,215.02,14.14620601]
[1736065249381,1.16268426,215.13,215.02,14.14620601]
[1736065249577,1.16268426,215.12,215.02,14.14620601]
[1736065249781,1.16268426,215.11,215.02,14.14620601]
[1736065249985,1.16268426,215.1,215.06,2.3252]
[1736065250182,5.0644,215.15,215.05,11.40620601]
[1736065250387,1.16250876,215.14,215.05,11.40620601]
[1736065250685,1.16250876,215.13,215.05,11.40620601]
[1736065250881,2.3241,215.17,215.05,11.40620601]
[1736065251080,1.16241178,215.16,215.05,11.40620601]
[1736065251280,1.16241178,215.15,215.09,2.3249]
[1736065251587,1.16241178,215.14,215.09,2.3249]
[1736065251789,1.16241178,215.13,215.08,2.74]
[1736065251985,1.4337,215.19,215.08,14.14620601]
[1736065252186,1.16224287,215.18,215.09,2.8228]
[1736065252388,1.16224287,215.17,215.09,2.8228]
[1736065252586,1.16224287,215.16,215.09,2.8228]
[1736065252787,1.16224287,215.15,215.09,2.8228]
[1736065252988,3.81907581,215.2,215.09,2.8228]
[1736065253183,2.324,215.18,215.11,2.3247]
[1736065253389,1.16228172,215.17,215.11,2.3247]
[1736065253589,1.16228172,215.16,215.11,2.3247]
[1736065253790,1.16228172,215.15,215.09,2.8228]
[1736065253989,1.16228172,215.14,215.09,2.8228]
[1736065254189,1.16228172,215.13,215.09,2.8228]
[1736065254489,2.3242,215.16,215.1,2.3247]
[1736065254682,15.22528182,215.2,215.09,2.8228]
[1736065254683,1.16233106,215.15,215.09,2.8228]
[1736065254881,1.16233106,215.14,215.09,2.8228]
[1736065255083,1.16233106,215.13,215.09,2.8228]
[1736065255292,2.3242,215.16,215.09,5.1477]
[1736065255494,1.16238164,215.15,215.0,2.74]
[1736065255688,1.16238164,215.14,215.0,17.03520601]
[1736065255890,2.3247,215.11,215.04,2.3254]
[1736065256186,12.80120601,215.16,215.0,17.03520601]
[1736065256386,12.80120601,215.16,215.05,2.3252]
[1736065256387,2.3245,215.13,215.05,2.3252]
[1736065256583,1.16261522,215.12,215.05,2.3252]
[1736065256783,1.16261522,215.11,215.03,11.40620601]
[1736065256989,1.16261522,215.1,215.03,11.40620601]
[1736065257187,1.395,215.16,215.03,11.40620601]
[1736065257389,1.16258013,215.15,215.03,11.40620601]
[1736065257588,1.16258013,215.14,215.03,11.40620601]
[1736065257795,1.395,215.16,215.03,11.40620601]
[1736065257796,1.16258013,215.13,215.03,11.40620601]
[1736065257990,1.395,215.16,215.03,11.40620601]
[1736065257991,1.16258013,215.12,215.03,11.40620601]
[1736065258185,1.16258013,215.11,215.06,11.40620601]
[1736065258381,2.3243,215.15,215.09,2.3249]
[1736065258683,1.16244581,215.14,215.09,2.3249]
[1736065258890,1.16244581,215.13,215.1,2.3248]
[1736065259090,1.16244581,215.12,215.1,2.3248]
[1736065259289,5.0641,215.17,215.1,2.3248]
[1736065259492,1.16240863,215.16,215.1,2.3248]
[1736065259695,1.16240863,215.15,215.1,2.3248]
[1736065259888,2.3241,215.17,215.1,2.3248]
[1736065259889,1.16240863,215.14,215.1,2.3248]
[1736065260089,1.16240863,215.13,215.1,2.3248]
[1736065260396,2.3241,215.17,215.06,14.14620601]
[1736065260591,1.16239908,215.16,215.11,2.3246]
[1736065260791,1.16239908,215.15,215.11,2.3246]
[1736065260991,1.16239908,215.14,215.11,2.3246]
[1736065261192,1.16239908,215.13,215.06,11.40620601]
[1736065261490,1.16239908,215.12,215.06,2.74]
[1736065261687,1.16239908,215.11,215.06,2.74]
[1736065261893,1.16239908,215.1,215.06,2.74]
[1736065262093,11.40620601,215.18,215.07,2.3251]
[1736065262295,1.16250482,215.17,215.06,2.74]
[1736065262493,11.40620601,215.15,215.06,2.74]
[1736065262799,1.16250482,215.14,215.06,2.74]
[1736065262998,2.3246,215.12,215.06,5.0652]
[1736065263196,1.16250482,215.11,215.06,5.0652]
[1736065263501,1.16250482,215.1,215.06,5.0652]
[1736065263796,1.16250482,215.09,215.06,5.0652]
[1736065263992,1.16250482,215.08,215.06,5.0652]
[1736065264196,1.16250482,215.07,215.06,5.0652]
[1736065264497,2.3245,215.14,215.06,5.0652]
[1736065264687,1.16260992,215.13,215.06,5.0652]
[1736065264891,1.16260992,215.12,215.06,5.0652]
[1736065265094,2.3245,215.14,215.06,5.0652]
[1736065265296,3.48711851,215.13,215.06,5.0652]
[1736065265495,1.16261851,215.12,215.06,5.0652]
[1736065265796,1.16261851,215.11,215.06,2.3252]
[1736065265997,1.16261851,215.1,215.05,2.3253]
[1736065266203,1.16261851,215.09,215.04,2.74]
[1736065266492,2.3245,215.13,215.04,2.74]
[1736065266493,1.16261851,215.08,215.04,2.74]
[1736065266797,1.16261851,215.07,215.04,2.74]
[1736065266995,1.16261851,215.06,215.05,2.3253]
[1736065267996,2.3244,215.14,215.07,2.3251]
[1736065268299,1.16253684,215.13,215.07,2.3251]
[1736065268500,1.16253684,215.12,215.07,2.3251]
[1736065268803,1.16253684,215.11,215.07,2.3251]
[1736065268999,1.16253684,215.1,215.07,2.3251]
[1736065269202,1.16253684,215.09,215.07,2.3251]
[1736065269399,1.16253684,215.08,215.07,2.3251]
[1736065270700,2.3244,215.14,215.07,2.3251]
[1736065271002,1.16257226,215.13,215.07,2.3251]
[1736065271201,2.3244,215.14,215.07,2.3251]
[1736065271202,1.16257226,215.12,215.07,2.3251]
[1736065271403,1.16257226,215.11,215.07,2.3251]
[1736065271703,1.16257226,215.1,215.07,2.3251]
[1736065271903,1.16257226,215.09,215.07,2.3251]
[1736065272102,1.16257226,215.08,215.07,2.3251]
[1736065273894,1.16256813,215.08,215.07,2.3251]
[1736065274298,2.3245,215.13,215.07,2.3251]
[1736065274502,1.16258346,215.12,215.07,2.3251]
[1736065274696,1.16258346,215.11,215.07,2.3251]
[1736065274900,1.16258346,215.1,215.07,2.3251]
[1736065275200,1.16258346,215.09,215.07,2.3251]
[1736065275397,1.16258346,215.08,215.07,2.3251]
[1736065276002,1.16256845,215.08,215.07,2.3251]
[1736065276202,1.16256845,215.08,215.07,9.62958114]
[1736065276506,7.30448114,215.17,215.07,7.30448114]
[1736065276707,7.30448114,215.17,215.11,7.30448114]
[1736065276902,2.72,215.18,215.11,7.30448114]
[1736065277107,7.30448114,215.19,215.11,9.62908114]
[1736065277308,7.30448114,215.17,215.11,7.30448114]
[1736065277611,2.3242,215.16,215.11,7.30448114]
[1736065278207,2.3242,215.16,215.09,2.72]
[1736065278411,2.3242,215.16,215.1,2.3247]
[1736065278707,3.81907581,215.2,215.09,2.72]
[1736065278911,6.14277581,215.2,215.1,11.41109817]
[1736065279806,6.14277581,215.2,215.13,2.3245]
[1736065280010,6.14277581,215.2,215.1,11.41109817]
[1736065281005,6.14277581,215.2,215.13,2.3245]
[1736065281907,6.14277581,215.2,215.1,11.41109817]
[1736065282206,6.14277581,215.2,215.14,2.3243]
[1736065282502,2.3239,215.18,215.1,11.41109817]
[1736065282706,2.3239,215.18,215.09,4.2279]
[1736065283400,3.81907581,215.2,215.09,4.2279]
[1736065283401,15.23017398,215.2,215.09,1.5079]
[1736065283600,17.95017398,215.2,215.08,4.1995]
[1736065283997,17.95017398,215.2,215.09,2.3249]
[1736065284306,17.95017398,215.2,215.08,4.1995]
[1736065284508,2.3243,215.16,215.08,4.1995]
[1736065285505,2.3243,215.16,215.11,2.3247]
[1736065288009,2.324,215.18,215.12,2.3246]
[1736065288314,3.81907581,215.2,215.1,2.72]
[1736065288608,1.16229406,215.19,215.1,14.13109817]
[1736065288810,1.16229406,215.18,215.1,14.13109817]
[1736065289108,1.16229406,215.17,215.15,2.3242]
[1736065289310,1.16229406,215.16,215.15,2.3242]
[1736065291016,1.16229406,215.16,215.13,2.3244]
[1736065291317,1.16229406,215.15,215.13,2.3244]
[1736065291617,1.16229406,215.14,215.1,2.72]
[1736065291924,1.16229406,215.13,215.1,2.72]
[1736065292216,1.16229406,215.12,215.1,2.72]
[1736065292519,1.16235952,215.11,215.1,2.72]
[1736065292712,1.16235952,215.11,215.09,2.72]
[1736065293015,15.23017398,215.2,215.08,3.8045]
[1736065293213,1.16246958,215.1,215.06,2.72]
[1736065293413,1.16246958,215.09,215.06,2.72]
[1736065293610,1.16246958,215.08,215.06,2.72]
[1736065293809,1.16246958,215.07,215.06,2.72]
[1736065296517,1.16246958,215.07,215.06,5.0452]
[1736065296717,2.3243,215.15,215.06,2.72]
[1736065296917,1.16243217,215.14,215.07,11.41109817]
[1736065297117,1.16243217,215.13,215.07,11.41109817]
[1736065297417,1.16243217,215.12,215.11,2.3247]
[1736065298416,1.16243217,215.12,215.1,2.3248]
[1736065298619,1.16243217,215.11,215.1,2.3248]
[1736065301218,1.16243217,215.11,215.08,2.3249]
[1736065301413,1.16243217,215.1,215.08,2.3249]
[1736065301619,1.16241421,215.09,215.08,2.3249]
[1736065302123,2.3243,215.15,215.08,2.3249]
[1736065302317,1.16241349,215.14,215.12,7.30287151]
[1736065302622,1.16241349,215.13,215.12,7.30287151]
[1736065303719,1.16241349,215.13,215.12,9.62747151]
[1736065303926,1.16231762,215.13,215.12,7.30287151]
[1736065304720,6.14287581,215.2,215.13,2.3245]
[1736065304924,1.16227892,215.19,215.14,7.30287151]
[1736065305123,1.16227892,215.18,215.14,7.30287151]
[1736065305321,8.46515043,215.17,215.12,2.3246]
[1736065305521,1.16227892,215.16,215.11,7.30287151]
[1736065305721,1.16227892,215.15,215.11,7.30287151]
[1736065305916,1.16227892,215.14,215.1,2.7]
[1736065306221,1.16227892,215.13,215.1,2.7]
[1736065306425,1.16227892,215.12,215.1,2.7]
[1736065306623,1.16227892,215.11,215.1,2.7]
[1736065306823,1.16227892,215.11,215.03,1.5079]
[1736065307018,1.16227892,215.1,215.05,7.30287151]
[1736065307216,1.16227892,215.09,215.05,7.30287151]
[1736065307421,1.16227892,215.08,215.05,7.30287151]
[1736065307616,7.30287151,215.11,215.03,7.30287151]
[1736065307822,2.7,215.17,215.01,8.71367151]
[1736065307823,7.30287151,215.09,215.01,8.71367151]
[1736065308124,3.48763729,215.08,215.02,2.3257]
[1736065308325,1.16263729,215.07,215.02,2.3257]
[1736065308517,1.16263729,215.06,215.02,2.3257]
[1736065308715,1.16263729,215.05,215.02,2.3257]
[1736065308920,1.16263729,215.04,215.02,2.3257]
[1736065309123,1.16263729,215.03,215.02,2.3257]
[1736065310717,2.3248,215.1,215.02,2.3257]
[1736065310923,1.16274311,215.09,215.02,2.3257]
[1736065311323,1.16274798,215.08,215.04,2.3254]
[1736065311524,2.3246,215.12,215.04,2.3254]
[1736065311725,1.1627323,215.11,215.04,2.3254]
[1736065311919,1.1627323,215.1,215.04,2.3254]
[1736065312127,1.1627323,215.09,215.04,2.3254]